[Event "*** Titled Tuesday Blitz"]
[Site "Chess.com"]
[Date "2019.04.02"]
[Round "7"]
[White "Lion_DL"]
[Black "Supernotar"]
[Result "0-1"]
[WhiteElo "2456"]
[BlackElo "2562"]
[TimeControl "180+2"]
[EndTime "15:32:48 PDT"]
[Termination "Supernotar won by resignation"]

1. e4 {[%clk 0:03:01.9]} 1... c6 {[%clk 0:03:00.4]} 2. d3 {[%clk 0:03:00.7]}
2... d5 {[%clk 0:03:02.3]} 3. Nd2 {[%clk 0:03:02.1]} 3... e5 {[%clk 0:03:00.6]}
4. Ngf3 {[%clk 0:03:03.4]} 4... Bd6 {[%clk 0:03:01.2]} 5. d4 {[%clk 0:03:04.5]}
5... exd4 {[%clk 0:03:00.9]} 6. exd5 {[%clk 0:03:05.2]} 6... Nf6 {[%clk
0:03:02]} 7. dxc6 {[%clk 0:02:48.4]} 7... Nxc6 {[%clk 0:03:01.8]} 8. Bb5 {[%clk
0:02:49.8]} 8... Qb6 {[%clk 0:02:57.8]} 9. Qe2+ {[%clk 0:02:48.8]} 9... Be6
{[%clk 0:02:57.7]} 10. O-O {[%clk 0:02:47.3]} 10... O-O {[%clk 0:02:56.3]} 11.
Nb3 {[%clk 0:02:44.3]} 11... Rfe8 {[%clk 0:02:48.2]} 12. Bxc6 {[%clk 0:02:29.1]}
12... bxc6 {[%clk 0:02:48.1]} 13. Nbxd4 {[%clk 0:02:09.6]} 13... Bxa2 {[%clk
0:02:43.9]} 14. Qd3 {[%clk 0:01:59.3]} 14... Bd5 {[%clk 0:02:36.5]} 15. Bg5
{[%clk 0:01:37.6]} 15... Ne4 {[%clk 0:02:34.6]} 16. Be3 {[%clk 0:01:36]} 16...
c5 {[%clk 0:01:46.2]} 17. Nf5 {[%clk 0:01:35.3]} 17... Bb7 {[%clk 0:01:43.6]}
18. Nxd6 {[%clk 0:01:20.5]} 18... Nxd6 {[%clk 0:01:43.5]} 19. b4 {[%clk
0:01:14.5]} 19... Ne4 {[%clk 0:01:22.7]} 20. Rfb1 {[%clk 0:01:07.2]} 20... Qg6
{[%clk 0:01:13.2]} 21. bxc5 {[%clk 0:00:59.4]} 21... Rad8 {[%clk 0:01:11.4]} 22.
Qf1 {[%clk 0:00:47.6]} 22... Bc6 {[%clk 0:00:58.5]} 23. Nd4 {[%clk 0:00:45.4]}
23... Rxd4 {[%clk 0:00:55.9]} 24. Bxd4 {[%clk 0:00:46.1]} 24... Nd2 {[%clk
0:00:56.3]} 25. Re1 {[%clk 0:00:31]} 25... Rxe1 {[%clk 0:00:46.9]} 26. Rxe1
{[%clk 0:00:27.1]} 26... Nxf1 {[%clk 0:00:47.1]} 27. Kxf1 {[%clk 0:00:28.7]}
27... Bxg2+ {[%clk 0:00:41]} 28. Ke2 {[%clk 0:00:30.2]} 28... Qxc2+ {[%clk
0:00:40.5]} 29. Ke3 {[%clk 0:00:31.3]} 29... Qe4+ {[%clk 0:00:41.5]} 30. Kd2
{[%clk 0:00:29.6]} 30... Qxd4+ {[%clk 0:00:42.5]} 31. Kc1 {[%clk 0:00:30.8]}
31... Qc3+ {[%clk 0:00:42.4]} 32. Kd1 {[%clk 0:00:31.5]} 32... Bf3+ {[%clk
0:00:43.5]} 0-1

[Event "*** Titled Tuesday Blitz"]
[Site "Chess.com"]
[Date "2019.04.02"]
[Round "7"]
[White "Ginger_GM"]
[Black "penguingm1"]
[Result "0-1"]
[WhiteElo "2622"]
[BlackElo "2947"]
[TimeControl "180+2"]
[EndTime "15:32:54 PDT"]
[Termination "penguingm1 won on time"]

1. d4 {[%clk 0:03:01.9]} 1... d5 {[%clk 0:03:01]} 2. c4 {[%clk 0:03:02.5]} 2...
e6 {[%clk 0:03:02.3]} 3. Nc3 {[%clk 0:03:03.5]} 3... Be7 {[%clk 0:03:03.8]} 4.
Nf3 {[%clk 0:03:04.4]} 4... Nf6 {[%clk 0:03:05.1]} 5. Bg5 {[%clk 0:03:05]} 5...
h6 {[%clk 0:03:05.7]} 6. Bf4 {[%clk 0:03:05.5]} 6... O-O {[%clk 0:03:06.4]} 7.
e3 {[%clk 0:03:05.9]} 7... b6 {[%clk 0:03:01.8]} 8. g4 {[%clk 0:03:04.9]} 8...
Ne4 {[%clk 0:02:54.6]} 9. Qc2 {[%clk 0:02:57.9]} 9... Bb7 {[%clk 0:02:43.2]} 10.
Rg1 {[%clk 0:02:38.6]} 10... c5 {[%clk 0:02:25.8]} 11. O-O-O {[%clk 0:02:09]}
11... cxd4 {[%clk 0:02:15.4]} 12. exd4 {[%clk 0:01:37.2]} 12... Nc6 {[%clk
0:01:59]} 13. Nxe4 {[%clk 0:01:25.6]} 13... Nb4 {[%clk 0:01:52.9]} 14. Nf6+
{[%clk 0:01:23.1]} 14... Bxf6 {[%clk 0:01:51.8]} 15. Qd2 {[%clk 0:01:23.4]}
15... dxc4 {[%clk 0:01:48.1]} 16. g5 {[%clk 0:01:12.6]} 16... hxg5 {[%clk
0:01:38.8]} 17. Nxg5 {[%clk 0:01:09.5]} 17... Nd5 {[%clk 0:00:55.2]} 18. Be5
{[%clk 0:00:57.9]} 18... c3 {[%clk 0:00:43.6]} 19. bxc3 {[%clk 0:00:57.7]} 19...
Nxc3 {[%clk 0:00:40.5]} 20. Nh7 {[%clk 0:00:36.2]} 20... Bxe5 {[%clk 0:00:37.4]}
21. Qh6 {[%clk 0:00:30.6]} 21... Nxd1 {[%clk 0:00:16.6]} 22. dxe5 {[%clk
0:00:25.6]} 22... Rc8+ {[%clk 0:00:15.4]} 23. Kb1 {[%clk 0:00:13.2]} 23... Be4+
{[%clk 0:00:16.8]} 0-1

[Event "*** Titled Tuesday Blitz"]
[Site "Chess.com"]
[Date "2019.04.02"]
[Round "7"]
[White "gemarin"]
[Black "norwaytoadog"]
[Result "0-1"]
[WhiteElo "2065"]
[BlackElo "2247"]
[TimeControl "180+2"]
[EndTime "15:32:54 PDT"]
[Termination "norwaytoadog won on time"]

1. d4 {[%clk 0:03:01.9]} 1... Nf6 {[%clk 0:03:00.4]} 2. c4 {[%clk 0:03:01.9]}
2... e6 {[%clk 0:03:01.7]} 3. a3 {[%clk 0:03:00.8]} 3... b6 {[%clk 0:02:53.9]}
4. Nc3 {[%clk 0:03:00.4]} 4... Bb7 {[%clk 0:02:53.6]} 5. Qc2 {[%clk 0:03:01.6]}
5... c5 {[%clk 0:02:52.1]} 6. dxc5 {[%clk 0:02:55]} 6... Bxc5 {[%clk 0:02:49.6]}
7. Nf3 {[%clk 0:02:55.4]} 7... O-O {[%clk 0:02:47.3]} 8. b4 {[%clk 0:02:56]}
8... Be7 {[%clk 0:02:47.2]} 9. Bb2 {[%clk 0:02:57]} 9... a6 {[%clk 0:02:43.2]}
10. e3 {[%clk 0:02:57.5]} 10... Qc7 {[%clk 0:02:43.5]} 11. Be2 {[%clk
0:02:57.1]} 11... d6 {[%clk 0:02:42.5]} 12. Rc1 {[%clk 0:02:56.6]} 12... Nbd7
{[%clk 0:02:43.2]} 13. O-O {[%clk 0:02:56.2]} 13... Rfd8 {[%clk 0:02:38.2]} 14.
Ng5 {[%clk 0:02:53.5]} 14... h6 {[%clk 0:02:26.6]} 15. Nge4 {[%clk 0:02:48.3]}
15... Rac8 {[%clk 0:02:20.4]} 16. Nxf6+ {[%clk 0:02:42.8]} 16... Bxf6 {[%clk
0:02:09]} 17. Rfd1 {[%clk 0:02:42.9]} 17... Bc6 {[%clk 0:01:49.1]} 18. Qb3
{[%clk 0:02:10.8]} 18... Qb7 {[%clk 0:01:38.7]} 19. Bf1 {[%clk 0:02:11]} 19...
Ne5 {[%clk 0:01:25.2]} 20. f3 {[%clk 0:01:53.7]} 20... Bxf3 {[%clk 0:01:16]} 21.
gxf3 {[%clk 0:01:41.8]} 21... Nxf3+ {[%clk 0:01:12.4]} 22. Kf2 {[%clk
0:01:41.8]} 22... Bh4+ {[%clk 0:01:07.7]} 23. Ke2 {[%clk 0:01:39]} 23... d5
{[%clk 0:00:58.8]} 24. c5 {[%clk 0:00:31.7]} 24... Ng1+ {[%clk 0:00:54.3]} 25.
Kd3 {[%clk 0:00:10.5]} 25... bxc5 {[%clk 0:00:53.8]} 26. Kc2 {[%clk 0:00:03.6]}
26... d4 {[%clk 0:00:45.9]} 0-1

[Event "*** Titled Tuesday Blitz"]
[Site "Chess.com"]
[Date "2019.04.02"]
[Round "7"]
[White "Walter_White_Poland"]
[Black "KRASAVCHIK2002"]
[Result "0-1"]
[WhiteElo "2242"]
[BlackElo "2409"]
[TimeControl "180+2"]
[EndTime "15:32:57 PDT"]
[Termination "KRASAVCHIK2002 won on time"]

1. e4 {[%clk 0:03:01.9]} 1... c5 {[%clk 0:03:00.5]} 2. Nf3 {[%clk 0:03:02]} 2...
d6 {[%clk 0:03:01.8]} 3. d4 {[%clk 0:03:02.9]} 3... cxd4 {[%clk 0:03:03.2]} 4.
Nxd4 {[%clk 0:03:03.5]} 4... Nf6 {[%clk 0:03:03.6]} 5. Nc3 {[%clk 0:03:04.5]}
5... a6 {[%clk 0:03:05]} 6. Bg5 {[%clk 0:03:05.6]} 6... e6 {[%clk 0:03:06.1]} 7.
f4 {[%clk 0:03:06.3]} 7... Qb6 {[%clk 0:03:07.3]} 8. Qd3 {[%clk 0:03:05.7]} 8...
Qxb2 {[%clk 0:03:06.6]} 9. Rb1 {[%clk 0:03:06.7]} 9... Qa3 {[%clk 0:03:07.6]}
10. f5 {[%clk 0:02:51.2]} 10... Nc6 {[%clk 0:02:51.6]} 11. fxe6 {[%clk
0:02:48.8]} 11... fxe6 {[%clk 0:02:44.4]} 12. Nxc6 {[%clk 0:02:47.7]} 12... bxc6
{[%clk 0:02:45.2]} 13. Be2 {[%clk 0:02:48.3]} 13... Be7 {[%clk 0:02:30.1]} 14.
Bh5+ {[%clk 0:02:45.1]} 14... g6 {[%clk 0:01:46.6]} 15. Bg4 {[%clk 0:01:25]}
15... Qc5 {[%clk 0:01:10.6]} 16. Be3 {[%clk 0:01:11.6]} 16... Qa5 {[%clk
0:01:09.1]} 17. Bh3 {[%clk 0:00:57.1]} 17... Nxe4 {[%clk 0:00:50.6]} 18. Bd4
{[%clk 0:00:15.1]} 18... e5 {[%clk 0:00:17.7]} 19. Bxc8 {[%clk 0:00:14.6]} 19...
exd4 {[%clk 0:00:11.6]} 20. Bb7 {[%clk 0:00:02.8]} 20... Qxc3+ {[%clk
0:00:11.7]} 21. Qxc3 {[%clk 0:00:03.4]} 21... Nxc3 {[%clk 0:00:12.9]} 0-1

[Event "*** Titled Tuesday Blitz"]
[Site "Chess.com"]
[Date "2019.04.02"]
[Round "7"]
[White "KenanGarayev"]
[Black "scaryninja"]
[Result "1-0"]
[WhiteElo "2762"]
[BlackElo "2480"]
[TimeControl "180+2"]
[EndTime "15:32:59 PDT"]
[Termination "KenanGarayev won by checkmate"]

1. d4 {[%clk 0:03:01.9]} 1... d5 {[%clk 0:02:59.8]} 2. c4 {[%clk 0:03:03.8]}
2... e6 {[%clk 0:03:00.7]} 3. Nc3 {[%clk 0:03:00.6]} 3... Nf6 {[%clk 0:03:01.8]}
4. cxd5 {[%clk 0:02:57.8]} 4... exd5 {[%clk 0:03:03.7]} 5. Bg5 {[%clk
0:02:57.8]} 5... c6 {[%clk 0:03:05.2]} 6. e3 {[%clk 0:02:56.6]} 6... Be7 {[%clk
0:03:05.7]} 7. Bd3 {[%clk 0:02:55.6]} 7... Nbd7 {[%clk 0:03:06.6]} 8. Nge2
{[%clk 0:02:54.1]} 8... Nf8 {[%clk 0:03:03.4]} 9. O-O {[%clk 0:02:52]} 9... Ne6
{[%clk 0:03:00.8]} 10. Bh4 {[%clk 0:02:51.1]} 10... O-O {[%clk 0:02:57.7]} 11.
f3 {[%clk 0:02:47.9]} 11... g6 {[%clk 0:02:41.3]} 12. Bf2 {[%clk 0:02:44.7]}
12... b6 {[%clk 0:02:32.6]} 13. h3 {[%clk 0:02:29.7]} 13... Bb7 {[%clk
0:02:30.8]} 14. e4 {[%clk 0:02:22.9]} 14... Nh5 {[%clk 0:02:17.7]} 15. Qd2
{[%clk 0:02:18.7]} 15... Bg5 {[%clk 0:02:16.4]} 16. Be3 {[%clk 0:02:15.1]} 16...
Bxe3+ {[%clk 0:01:52.5]} 17. Qxe3 {[%clk 0:02:17]} 17... c5 {[%clk 0:01:53.6]}
18. Nxd5 {[%clk 0:02:13.1]} 18... Bxd5 {[%clk 0:01:45.5]} 19. exd5 {[%clk
0:02:12.8]} 19... cxd4 {[%clk 0:01:33.4]} 20. Qe5 {[%clk 0:02:09.4]} 20... Qc7
{[%clk 0:01:06.8]} 21. Qxc7 {[%clk 0:02:00.7]} 21... Nxc7 {[%clk 0:01:06.6]} 22.
Be4 {[%clk 0:02:02.6]} 22... f5 {[%clk 0:00:56.6]} 23. Bd3 {[%clk 0:01:53.6]}
23... Nxd5 {[%clk 0:00:51.4]} 24. Bc4 {[%clk 0:01:51.3]} 24... Rfd8 {[%clk
0:00:51.2]} 25. g4 {[%clk 0:01:45.4]} 25... Nf6 {[%clk 0:00:47.1]} 26. Nxd4
{[%clk 0:01:45.3]} 26... Kh8 {[%clk 0:00:41.9]} 27. Ne6 {[%clk 0:01:39]} 27...
Rd6 {[%clk 0:00:23]} 28. Rae1 {[%clk 0:01:29.6]} 28... Rc8 {[%clk 0:00:20.2]}
29. Ng5 {[%clk 0:01:24.9]} 29... Kg7 {[%clk 0:00:18.3]} 30. b3 {[%clk
0:01:22.4]} 30... h6 {[%clk 0:00:15.9]} 31. Ne6+ {[%clk 0:01:20.6]} 31... Kh7
{[%clk 0:00:17.2]} 32. gxf5 {[%clk 0:01:22.5]} 32... gxf5 {[%clk 0:00:18.5]} 33.
Re5 {[%clk 0:01:17.4]} 33... f4 {[%clk 0:00:15.6]} 34. Kh1 {[%clk 0:01:07.5]}
34... Ne3 {[%clk 0:00:14.7]} 35. Nxf4 {[%clk 0:01:04.3]} 35... Nxf1 {[%clk
0:00:14.8]} 36. Re7+ {[%clk 0:01:02.5]} 36... Kh8 {[%clk 0:00:10.6]} 37. Ng6#
{[%clk 0:01:04.4]} 1-0

[Event "*** Titled Tuesday Blitz"]
[Site "Chess.com"]
[Date "2019.04.02"]
[Round "7"]
[White "Medvegy"]
[Black "KarstenHansch"]
[Result "0-1"]
[WhiteElo "2493"]
[BlackElo "2366"]
[TimeControl "180+2"]
[EndTime "15:33:00 PDT"]
[Termination "KarstenHansch won by resignation"]

1. Nf3 {[%clk 0:02:59.2]} 1... c5 {[%clk 0:02:59.4]} 2. b3 {[%clk 0:02:55.4]}
2... Nf6 {[%clk 0:03:00.3]} 3. Bb2 {[%clk 0:02:54.9]} 3... e6 {[%clk 0:03:01.7]}
4. g3 {[%clk 0:02:54.2]} 4... Be7 {[%clk 0:03:03.2]} 5. Bg2 {[%clk 0:02:55.7]}
5... Nc6 {[%clk 0:03:04.7]} 6. O-O {[%clk 0:02:56.5]} 6... O-O {[%clk
0:03:05.7]} 7. e3 {[%clk 0:02:56.9]} 7... d5 {[%clk 0:03:04]} 8. d4 {[%clk
0:02:56.1]} 8... b6 {[%clk 0:03:02.9]} 9. Nbd2 {[%clk 0:02:56]} 9... Ba6 {[%clk
0:03:03]} 10. Re1 {[%clk 0:02:53.2]} 10... Rc8 {[%clk 0:03:03.1]} 11. Rc1 {[%clk
0:02:50.5]} 11... Rc7 {[%clk 0:02:56.9]} 12. c4 {[%clk 0:02:49.9]} 12... Nb4
{[%clk 0:02:54.4]} 13. Ne5 {[%clk 0:02:30]} 13... Nxa2 {[%clk 0:02:41.7]} 14.
Ra1 {[%clk 0:02:28.7]} 14... Nb4 {[%clk 0:02:42.1]} 15. Bc3 {[%clk 0:02:28]}
15... Bc8 {[%clk 0:02:33.4]} 16. Bxb4 {[%clk 0:02:21.9]} 16... cxb4 {[%clk
0:02:34.1]} 17. g4 {[%clk 0:02:06]} 17... a5 {[%clk 0:02:26.3]} 18. g5 {[%clk
0:02:04]} 18... Nd7 {[%clk 0:02:24.6]} 19. Nxd7 {[%clk 0:02:02.1]} 19... Qxd7
{[%clk 0:02:25.3]} 20. f4 {[%clk 0:01:59.3]} 20... Bb7 {[%clk 0:02:11.9]} 21.
Qg4 {[%clk 0:01:41.6]} 21... f5 {[%clk 0:02:01]} 22. gxf6 {[%clk 0:01:30.2]}
22... Rxf6 {[%clk 0:02:01.6]} 23. cxd5 {[%clk 0:00:24.8]} 23... Rg6 {[%clk
0:01:51.1]} 24. Qh3 {[%clk 0:00:07.7]} 24... Qxd5 {[%clk 0:01:45.2]} 25. Re2
{[%clk 0:00:05.6]} 25... Rc2 {[%clk 0:01:35.1]} 26. Rd1 {[%clk 0:00:06]} 26...
Rxg2+ {[%clk 0:01:15.7]} 27. Qxg2 {[%clk 0:00:04.2]} 27... Qxg2+ {[%clk
0:01:17.6]} 28. Rxg2 {[%clk 0:00:05.6]} 28... Bxg2 {[%clk 0:01:18.4]} 29. Kxg2
{[%clk 0:00:07.5]} 29... a4 {[%clk 0:01:15.7]} 30. Kf3 {[%clk 0:00:08.6]} 30...
a3 {[%clk 0:01:14.5]} 31. Nc4 {[%clk 0:00:02.9]} 31... Rxc4 {[%clk 0:01:09.9]}
0-1

[Event "*** Titled Tuesday Blitz"]
[Site "Chess.com"]
[Date "2019.04.02"]
[Round "7"]
[White "GCamachoMartinez"]
[Black "NMZanette"]
[Result "1/2-1/2"]
[WhiteElo "2345"]
[BlackElo "2224"]
[TimeControl "180+2"]
[EndTime "15:33:01 PDT"]
[Termination "Game drawn by agreement"]

1. d4 {[%clk 0:03:01.9]} 1... Nf6 {[%clk 0:02:59.9]} 2. c4 {[%clk 0:03:02.2]}
2... e6 {[%clk 0:02:59.8]} 3. Nf3 {[%clk 0:03:02.1]} 3... c5 {[%clk 0:03:00.4]}
4. g3 {[%clk 0:03:02.1]} 4... Be7 {[%clk 0:02:59.4]} 5. Bg2 {[%clk 0:03:02.1]}
5... O-O {[%clk 0:03:00.4]} 6. O-O {[%clk 0:03:03]} 6... d5 {[%clk 0:03:01.6]}
7. cxd5 {[%clk 0:03:00.5]} 7... exd5 {[%clk 0:03:01.3]} 8. Nc3 {[%clk 0:03:01]}
8... c4 {[%clk 0:03:00.5]} 9. b3 {[%clk 0:02:54.5]} 9... cxb3 {[%clk 0:02:58.4]}
10. axb3 {[%clk 0:02:51]} 10... Nc6 {[%clk 0:02:58]} 11. Ne5 {[%clk 0:02:44.4]}
11... Be6 {[%clk 0:02:55.7]} 12. Nxc6 {[%clk 0:02:34.3]} 12... bxc6 {[%clk
0:02:55.2]} 13. Ba3 {[%clk 0:02:32]} 13... Bf5 {[%clk 0:02:40.9]} 14. Na4 {[%clk
0:02:20.2]} 14... Re8 {[%clk 0:02:32.8]} 15. Bxe7 {[%clk 0:01:54.5]} 15... Qxe7
{[%clk 0:02:31.9]} 16. e3 {[%clk 0:01:55.4]} 16... Be4 {[%clk 0:02:27.5]} 17.
Nc5 {[%clk 0:01:51.7]} 17... Bxg2 {[%clk 0:02:26.8]} 18. Kxg2 {[%clk 0:01:53.6]}
18... Ne4 {[%clk 0:02:27.7]} 19. Rc1 {[%clk 0:01:38.6]} 19... Rab8 {[%clk
0:02:20.4]} 20. Qd3 {[%clk 0:01:35.4]} 20... h5 {[%clk 0:02:15.5]} 21. h4 {[%clk
0:01:22.3]} 21... Nd6 {[%clk 0:02:03.8]} 22. Ra1 {[%clk 0:01:15.6]} 22... Nb5
{[%clk 0:01:50.8]} 23. Qf5 {[%clk 0:01:06.1]} 23... g6 {[%clk 0:01:50.7]} 24.
Qd7 {[%clk 0:01:06.9]} 24... Qf6 {[%clk 0:01:44]} 25. Ra6 {[%clk 0:00:53.8]}
25... Rbc8 {[%clk 0:01:37.7]} 26. Qxd5 {[%clk 0:00:49.2]} 26... Qxf2+ {[%clk
0:01:19.7]} 27. Kxf2 {[%clk 0:00:27.2]} 27... cxd5 {[%clk 0:01:20]} 28. Rfa1
{[%clk 0:00:25.5]} 28... Rc7 {[%clk 0:01:14]} 29. R1a5 {[%clk 0:00:25.6]} 29...
Rb8 {[%clk 0:01:03.7]} 30. Ke2 {[%clk 0:00:21.2]} 30... Nc3+ {[%clk 0:01:00.5]}
31. Kd3 {[%clk 0:00:21.4]} 31... Nb5 {[%clk 0:00:53.2]} 32. Rf6 {[%clk
0:00:17.1]} 32... Re7 {[%clk 0:00:47.6]} 33. Rf3 {[%clk 0:00:15.6]} 1/2-1/2

[Event "*** Titled Tuesday Blitz"]
[Site "Chess.com"]
[Date "2019.04.02"]
[Round "7"]
[White "vgyogi"]
[Black "europa2012"]
[Result "0-1"]
[WhiteElo "2138"]
[BlackElo "2126"]
[TimeControl "180+2"]
[EndTime "15:33:05 PDT"]
[Termination "europa2012 won by resignation"]

1. d4 {[%clk 0:03:01.9]} 1... Nf6 {[%clk 0:02:58.5]} 2. Bg5 {[%clk 0:03:00.7]}
2... Ne4 {[%clk 0:02:58.6]} 3. Bf4 {[%clk 0:02:59.2]} 3... d5 {[%clk 0:02:59.5]}
4. f3 {[%clk 0:02:59.2]} 4... Nf6 {[%clk 0:02:59.7]} 5. e4 {[%clk 0:03:00.7]}
5... dxe4 {[%clk 0:03:00.3]} 6. Nc3 {[%clk 0:03:00.8]} 6... Bf5 {[%clk
0:02:53.9]} 7. Qe2 {[%clk 0:02:51.2]} 7... exf3 {[%clk 0:02:50]} 8. Nxf3 {[%clk
0:02:51.4]} 8... Bd7 {[%clk 0:02:40.6]} 9. O-O-O {[%clk 0:02:51.2]} 9... e6
{[%clk 0:02:40.3]} 10. Ne5 {[%clk 0:02:44.9]} 10... Bb4 {[%clk 0:02:36.1]} 11.
Ne4 {[%clk 0:02:37.9]} 11... Nxe4 {[%clk 0:02:29.5]} 12. Qxe4 {[%clk 0:02:38.4]}
12... Nc6 {[%clk 0:02:31]} 13. Kb1 {[%clk 0:02:33.7]} 13... Bd6 {[%clk
0:02:29.9]} 14. a3 {[%clk 0:02:28.9]} 14... O-O {[%clk 0:02:27.6]} 15. Bd3
{[%clk 0:02:23.8]} 15... f5 {[%clk 0:02:28.6]} 16. Qe3 {[%clk 0:02:20.9]} 16...
Bxe5 {[%clk 0:02:24.3]} 17. dxe5 {[%clk 0:02:19.7]} 17... Qe7 {[%clk 0:02:25.4]}
18. h4 {[%clk 0:02:18.7]} 18... Rad8 {[%clk 0:02:23.5]} 19. Bc4 {[%clk 0:02:10]}
19... a6 {[%clk 0:02:17.2]} 20. h5 {[%clk 0:02:07.8]} 20... h6 {[%clk
0:02:14.3]} 21. Qg3 {[%clk 0:01:53.7]} 21... Kh8 {[%clk 0:02:10.2]} 22. Rd2
{[%clk 0:01:47.5]} 22... b5 {[%clk 0:02:06.1]} 23. Ba2 {[%clk 0:01:43.9]} 23...
Bc8 {[%clk 0:02:04.7]} 24. Rhd1 {[%clk 0:01:30.6]} 24... Rxd2 {[%clk 0:02:04.4]}
25. Rxd2 {[%clk 0:01:30.8]} 25... Rd8 {[%clk 0:02:06]} 26. Rxd8+ {[%clk
0:01:18.8]} 26... Qxd8 {[%clk 0:02:05.6]} 27. Kc1 {[%clk 0:01:20.4]} 27... Qd4
{[%clk 0:01:51.8]} 28. Bb3 {[%clk 0:01:09.4]} 28... Na5 {[%clk 0:01:31.2]} 29.
Be3 {[%clk 0:01:10.4]} 29... Nxb3+ {[%clk 0:01:28.6]} 30. cxb3 {[%clk 0:01:11]}
30... Qe4 {[%clk 0:01:24.9]} 31. Kd2 {[%clk 0:01:08]} 31... Qd5+ {[%clk
0:01:23.3]} 32. Kc2 {[%clk 0:01:06.3]} 32... Qe4+ {[%clk 0:01:24.5]} 33. Kd2
{[%clk 0:01:06.7]} 33... Bb7 {[%clk 0:01:24.9]} 34. b4 {[%clk 0:00:58.3]} 34...
Qd5+ {[%clk 0:01:18.8]} 35. Ke2 {[%clk 0:00:54.1]} 35... Qxg2+ {[%clk
0:01:15.7]} 36. Bf2 {[%clk 0:00:51.8]} 36... Qe4+ {[%clk 0:01:10.4]} 37. Be3
{[%clk 0:00:50]} 37... Qc2+ {[%clk 0:01:08.6]} 38. Bd2 {[%clk 0:00:46.6]} 38...
Qxb2 {[%clk 0:01:06.5]} 39. Qg6 {[%clk 0:00:47.1]} 39... Qxe5+ {[%clk
0:01:06.5]} 40. Kf2 {[%clk 0:00:43.1]} 40... Bc6 {[%clk 0:00:57.7]} 41. Bxh6
{[%clk 0:00:39.4]} 41... gxh6 {[%clk 0:00:49]} 42. Qxh6+ {[%clk 0:00:40.2]}
42... Kg8 {[%clk 0:00:50.4]} 43. Qg6+ {[%clk 0:00:41.3]} 43... Qg7 {[%clk
0:00:50.8]} 44. Qe8+ {[%clk 0:00:41.8]} 44... Bxe8 {[%clk 0:00:50.9]} 0-1

[Event "*** Titled Tuesday Blitz"]
[Site "Chess.com"]
[Date "2019.04.02"]
[Round "7"]
[White "NikolaN98"]
[Black "platy3"]
[Result "0-1"]
[WhiteElo "2529"]
[BlackElo "2778"]
[TimeControl "180+2"]
[EndTime "15:33:12 PDT"]
[Termination "platy3 won on time"]

1. e4 {[%clk 0:03:01.9]} 1... c5 {[%clk 0:02:53.6]} 2. Nf3 {[%clk 0:03:02.6]}
2... d6 {[%clk 0:02:54.5]} 3. d4 {[%clk 0:03:03.6]} 3... cxd4 {[%clk 0:02:56.4]}
4. Nxd4 {[%clk 0:03:04.7]} 4... Nf6 {[%clk 0:02:58.1]} 5. Nc3 {[%clk 0:03:06]}
5... a6 {[%clk 0:02:59.1]} 6. Bg5 {[%clk 0:03:06.6]} 6... e6 {[%clk 0:03:00]} 7.
f4 {[%clk 0:03:07.2]} 7... h6 {[%clk 0:03:01]} 8. Bh4 {[%clk 0:03:07.6]} 8...
Qb6 {[%clk 0:03:02.4]} 9. Qd2 {[%clk 0:03:08.4]} 9... Qxb2 {[%clk 0:03:01.9]}
10. Rb1 {[%clk 0:03:08.9]} 10... Qa3 {[%clk 0:03:03.2]} 11. e5 {[%clk
0:03:10.3]} 11... dxe5 {[%clk 0:03:01.8]} 12. fxe5 {[%clk 0:03:11.8]} 12... Nfd7
{[%clk 0:03:01.3]} 13. Ne4 {[%clk 0:03:11.5]} 13... Qxa2 {[%clk 0:03:02.8]} 14.
Rd1 {[%clk 0:03:11.7]} 14... Qd5 {[%clk 0:03:03.7]} 15. Qe3 {[%clk 0:03:12.5]}
15... Qxe5 {[%clk 0:03:03.9]} 16. Be2 {[%clk 0:03:11.2]} 16... Qa5+ {[%clk
0:02:27.1]} 17. c3 {[%clk 0:03:06.2]} 17... Bc5 {[%clk 0:01:58.1]} 18. O-O
{[%clk 0:03:04]} 18... O-O {[%clk 0:01:59.1]} 19. Qg3 {[%clk 0:02:21.6]} 19...
Kh8 {[%clk 0:01:28.2]} 20. Nf6 {[%clk 0:02:02.1]} 20... Bxd4+ {[%clk 0:01:15.5]}
21. Rxd4 {[%clk 0:01:24.2]} 21... Qe5 {[%clk 0:01:14.6]} 22. Qd3 {[%clk
0:00:54.4]} 22... Nxf6 {[%clk 0:01:03.3]} 23. Bxf6 {[%clk 0:00:35.9]} 23... gxf6
{[%clk 0:01:02.3]} 24. Rh4 {[%clk 0:00:36.7]} 24... f5 {[%clk 0:00:54.3]} 25.
Rxh6+ {[%clk 0:00:16]} 25... Kg7 {[%clk 0:00:55.1]} 26. Rh3 {[%clk 0:00:07.8]}
26... Nc6 {[%clk 0:00:51.9]} 27. Rff3 {[%clk 0:00:08.3]} 27... Kf6 {[%clk
0:00:49.8]} 28. Re3 {[%clk 0:00:07.4]} 28... Qc5 {[%clk 0:00:50]} 29. Kf1 {[%clk
0:00:07.7]} 29... Rd8 {[%clk 0:00:48.8]} 30. Qc2 {[%clk 0:00:04.9]} 30... b5
{[%clk 0:00:48.1]} 31. Bd3 {[%clk 0:00:04.6]} 31... Ne5 {[%clk 0:00:46.9]} 32.
Rh6+ {[%clk 0:00:04.7]} 32... Ke7 {[%clk 0:00:47.5]} 0-1